bitfinex/quotes_SOLUSD_20220228
["timestamp","ask_amount","ask_price","bid_price","bid_amount"]
[1646045828566,23.7752,89.987,89.931,28.12551179]
[1646045829174,23.7752,89.987,89.931,5.85]
[1646045829367,23.7752,89.987,89.93,16.01]
[1646045831172,23.7752,89.987,89.913,110.6]
[1646045831571,23.7752,89.987,89.915,110.6]
[1646045831971,23.7752,89.987,89.917,110.6]
[1646045832172,52.92240583,89.986,89.916,22.26393463]
[1646045832474,1.81301196,89.985,89.918,22.26393463]
[1646045832671,112.41301196,89.985,89.918,22.26393463]
[1646045832871,1.74712366,89.984,89.883,24.1215]
[1646045833071,1.54741362,89.982,89.884,23.4939]
[1646045833272,1.54741362,89.982,89.884,45.77615646]
[1646045833672,1.54741362,89.982,89.885,22.28225646]
[1646045834472,0.95900131,89.981,89.885,22.28225646]
[1646045834675,110.6,89.98,89.885,22.28225646]
[1646045834873,1.35908261,89.979,89.884,23.4939]
[1646045835275,1.35908261,89.979,89.885,22.28671038]
[1646045838579,1.35908261,89.979,89.886,110.6]
[1646045838778,1.35908261,89.979,89.886,116.11]
[1646045838979,1.35908261,89.979,89.9,16.01]
[1646045839179,1.35908261,89.979,89.901,23.8141]
[1646045839380,1.35908261,89.979,89.902,110.1]
[1646045839579,52.92240583,89.986,89.906,110.1]
[1646045839802,52.92240583,89.986,89.911,110.1]
[1646045840180,52.92240583,89.986,89.913,110.1]
[1646045840579,52.92240583,89.986,89.915,110.1]
[1646045840979,52.92240583,89.986,89.917,110.1]
[1646045842079,52.92240583,89.986,89.912,2.49467429]
[1646045842280,1.38225711,90.013,89.912,2.49467429]
[1646045842481,1.38225711,90.013,89.912,5.2414635]
[1646045842683,1.38225711,90.013,89.914,110.1]
[1646045843082,1.38225711,90.013,89.916,110.1]
[1646045843283,49.19111304,89.992,89.92,126.11]
[1646045843486,159.79111304,89.992,89.92,16.01]
[1646045843682,112.06238336,89.986,89.917,22.25935293]
[1646045843882,1.8159315,89.985,89.86,16.01]
[1646045844083,110.6,89.979,89.867,16.8956]
[1646045844283,110.6,89.979,89.85,21.81379171]
[1646045844284,110.6,89.977,89.884,22.28313173]
[1646045844484,61.08331929,89.978,89.884,22.28313173]
[1646045844485,110.6,89.975,89.884,22.28313173]
[1646045844683,110.6,89.969,89.858,22.28313173]
[1646045844883,1.73981014,89.968,89.859,110.6]
[1646045845085,1.73981014,89.968,89.86,16.01]
[1646045845488,1.73981014,89.968,89.861,22.28313173]
[1646045846687,1.91800262,89.967,89.861,22.28313173]
[1646045847089,110.6,89.965,89.852,22.28313173]
[1646045847304,110.6,89.963,89.852,22.28313173]
[1646045847506,110.6,89.949,89.852,22.28313173]
[1646045847805,110.6,89.945,89.852,22.28313173]
[1646045848007,1.59988441,89.944,89.852,22.28313173]
[1646045849706,1.55579588,89.938,89.847,22.28313173]
[1646045849908,110.6,89.936,89.847,22.28313173]
[1646045850107,1.58477001,89.935,89.821,23.7201]
[1646045850510,1.91800262,89.934,89.821,23.7201]
[1646045850908,1.58477001,89.935,89.821,23.7201]
[1646045851808,1.58477001,89.935,89.83,21.47380299]
[1646045852008,1.58477001,89.935,89.83,37.48380299]
[1646045852408,1.58477001,89.935,89.834,21.5093171]
[1646045852612,1.58477001,89.935,89.845,22.29407613]
[1646045852810,1.58477001,89.935,89.845,43.80339323]
[1646045853014,1.58477001,89.935,89.846,21.5093171]
[1646045853412,1.58477001,89.935,89.847,22.29407613]
[1646045853814,1.58477001,89.935,89.832,23.455]
[1646045854011,1.58477001,89.935,89.833,110.6]
[1646045854211,1.58477001,89.935,89.845,22.28680557]
[1646045855613,1.58477001,89.935,89.845,21.78680557]
[1646045855813,1.58477001,89.935,89.832,23.455]
[1646045856612,2.74678921,89.934,89.832,23.455]
[1646045857423,110.6,89.929,89.829,116.0783]
[1646045857613,1.35941918,89.928,89.829,116.0783]
[1646045857813,3.2774218,89.928,89.829,116.0783]
[1646045858215,110.6,89.926,89.829,116.0783]
[1646045858415,1.74156556,89.925,89.829,116.0783]
[1646045858614,4.48835477,89.925,89.829,116.0783]
[1646045858813,110.6,89.909,89.829,116.0783]
[1646045859114,1.35287306,89.906,89.829,116.0783]
[1646045862917,3.27087568,89.906,89.829,116.0783]
[1646045863118,110.6,89.904,89.829,116.0783]
[1646045863316,112.27364917,89.899,89.829,116.0783]
[1646045863519,1.50710651,89.898,89.829,116.0783]
[1646045864119,3.29489441,89.898,89.829,116.0783]
[1646045864920,1.50710651,89.898,89.829,116.0783]
[1646045870525,1.91800262,89.897,89.829,116.0783]
[1646045870926,110.6,89.896,89.829,116.0783]
[1646045871228,1.70310236,89.895,89.829,116.0783]
[1646045871426,110.6,89.889,89.829,116.0783]
[1646045871625,1.53254866,89.888,89.829,116.0783]
[1646045873626,1.61291906,89.906,89.829,116.0783]
[1646045875027,110.6,89.905,89.829,116.0783]
[1646045875226,1.62774422,89.904,89.829,116.0783]
[1646045875726,59.71531322,89.908,89.83,24.5043]
[1646045876527,112.1041279,89.907,89.83,24.5043]
[1646045876729,1.37839293,89.906,89.83,24.5043]
[1646045883534,59.71531322,89.908,89.83,24.5043]
[1646045885936,59.71531322,89.908,89.831,2.41453789]
[1646045887539,23.1003,89.909,89.831,10.36453789]
[1646045888640,45.32509987,89.908,89.831,10.36453789]
[1646045888840,45.32509987,89.908,89.831,2.41453789]
[1646045895552,23.1003,89.909,89.831,2.41453789]
[1646045895751,23.9002,89.933,89.831,113.01453789]
[1646045895954,23.9002,89.933,89.832,3.10422004]
[1646045896367,110.6,89.932,89.832,3.10422004]
[1646045896565,54.24755337,89.918,89.832,3.10422004]
[1646045898467,110.6,89.916,89.83,40.5143]
[1646045898665,1.70367652,89.915,89.83,40.5143]
[1646045898867,1.70367652,89.915,89.83,24.5043]
[1646045900466,110.6,89.913,89.83,24.5043]
[1646045900666,110.6,89.909,89.83,24.5043]
[1646045900868,1.81751316,89.908,89.83,24.5043]
[1646045901167,3.73551578,89.908,89.83,24.5043]
[1646045901367,1.81751316,89.908,89.83,24.5043]
[1646045901768,110.6,89.907,89.83,24.5043]
[1646045901968,1.80733018,89.906,89.83,24.5043]
[1646045902167,110.6,89.905,89.83,24.5043]
[1646045902567,1.50678501,89.904,89.83,24.5043]
[1646045908172,22.6871,89.906,89.83,24.5043]
[1646045909372,22.6871,89.906,89.831,22.60800145]
[1646045911273,22.6871,89.906,89.83,24.5043]
[1646045912075,22.6871,89.906,89.831,22.6255918]
[1646045914576,24.18684394,89.906,89.831,22.6255918]
[1646045915778,22.6871,89.906,89.831,22.6255918]
[1646045915976,1.43744018,89.905,89.831,22.6255918]
[1646045918482,1.46985266,89.922,89.831,22.6255918]
[1646045918676,23.99519218,89.944,89.84,16.01]
[1646045918877,1.69725324,89.943,89.842,2.2885608]
[1646045919176,1.69725324,89.943,89.844,110.6]
[1646045919376,43.59669406,89.942,89.845,2.77966605]
[1646045919577,1.7686683,89.941,89.845,2.77966605]
[1646045919881,1.7686683,89.941,89.846,25.46341346]
[1646045920076,1.7686683,89.941,89.85,16.01]
[1646045920477,1.7686683,89.941,89.851,21.19106335]
[1646045920676,1.7686683,89.941,89.852,22.6582]
[1646045921079,1.7686683,89.941,89.853,43.81665515]
[1646045921478,1.7686683,89.941,89.854,21.19106335]
[1646045922480,1.7686683,89.941,89.855,110.6]
[1646045922680,22.5284,89.944,89.87,16.01]
[1646045923080,22.5284,89.944,89.871,21.19106335]
[1646045923882,1.44734946,89.987,89.872,110.6]
[1646045924082,45.1906,89.987,89.874,110.6]
[1646045924284,1.64324017,89.986,89.874,110.6]
[1646045924482,1.64324017,89.986,89.876,110.6]
[1646045924682,1.64324017,89.986,89.88,16.01]
[1646045924883,112.03139308,89.984,89.88,16.01]
[1646045925083,1.43139308,89.984,89.881,21.19106335]
[1646045925482,1.43139308,89.984,89.882,141.03773632]
[1646045925683,1.43139308,89.984,89.883,3.02006161]
[1646045925882,1.43139308,89.984,89.884,110.6]
[1646045926083,1.43139308,89.984,89.885,2.54580435]
[1646045926285,1.43139308,89.984,89.9,16.01]
[1646045926585,1.43139308,89.984,89.901,23.7187]
[1646045926786,1.43139308,89.984,89.901,44.90976335]
[1646045926984,1.43139308,89.984,89.902,21.19106335]
[1646045928484,112.03139308,89.984,89.902,21.19106335]
[1646045928686,1.4527536,89.983,89.902,21.19106335]
[1646045929484,1.4527536,89.983,89.901,40.2007]
[1646045930083,1.4527536,89.983,89.901,23.7187]
[1646045935387,3.2405415,89.983,89.901,23.7187]
[1646045938789,3.2405415,89.983,89.885,30.43773632]
[1646045938988,3.2405415,89.983,89.835,66.43]
[1646045938989,110.6,89.981,89.88,16.01]
[1646045939189,110.6,89.979,89.876,23.6822]
[1646045939389,1.61792536,89.978,89.876,23.6822]
[1646045939590,110.6,89.977,89.876,23.6822]
[1646045939789,110.6,89.975,89.876,23.6822]
[1646045940090,156.33580399,89.955,89.876,23.6822]
[1646045940287,1.77635341,89.952,89.876,23.6822]
[1646045944191,22.7995,89.954,89.88,16.01]
[1646045944392,22.7995,89.954,89.881,110.6]
[1646045944591,22.7995,89.954,89.881,141.03773632]
[1646045944816,22.7995,89.954,89.883,110.6]
[1646045944992,22.7995,89.954,89.882,30.43773632]
[1646045945190,22.7995,89.954,89.884,30.43773632]
[1646045945392,22.7995,89.954,89.885,110.6]
[1646045945591,22.7995,89.954,89.89,16.01]
[1646045949401,22.7995,89.954,89.871,47.07503632]
[1646045949598,1.59877557,89.953,89.871,16.6373]
[1646045951200,1.36824766,89.952,89.871,16.6373]
[1646045953001,1.91800262,89.951,89.871,16.6373]
[1646045953603,1.70229678,89.948,89.871,16.6373]
[1646045954003,1.70229678,89.948,89.86,30.43773632]
[1646045954203,1.78244229,89.953,89.87,16.01]
[1646045954402,1.78244229,89.953,89.872,30.43773632]
[1646045954804,10.0,90.671,89.875,177.03]
[1646045954805,1.51247655,89.987,89.875,177.03]
[1646045955104,25.83437655,89.987,89.891,110.6]
[1646045955404,25.83437655,89.987,89.892,32.74629443]
[1646045955604,25.83437655,89.987,89.893,110.6]
[1646045955804,24.3219,89.987,89.895,177.03]
[1646045956005,24.3219,89.987,89.896,2.45997256]
[1646045956203,24.3219,89.987,89.911,110.6]
[1646045956407,24.3219,89.987,89.912,2.34074071]
[1646045956603,24.3219,89.987,89.912,5.08752992]
[1646045957004,24.3219,89.987,89.913,2.74678921]
[1646045957803,49.7846752,89.986,89.913,2.74678921]
[1646045958204,49.7846752,89.986,89.91,16.01]
[1646045958408,49.7846752,89.986,89.91,32.5471]
[1646045958706,54.94354131,89.959,89.91,32.5471]
[1646045960108,24.3219,89.987,89.911,110.6]
[1646045960512,24.3219,89.987,89.912,2.74678921]
[1646045960709,24.4434,89.994,89.912,2.74678921]
[1646045960910,24.4434,89.994,89.914,110.6]
[1646045961114,54.44166333,89.991,89.914,110.6]
[1646045961311,54.44166333,89.991,89.916,110.6]
[1646045961512,54.44166333,89.991,89.93,16.01]
[1646045962012,24.4434,89.994,89.931,110.6]
[1646045963818,24.4434,89.994,89.93,18.75678921]
[1646045963819,112.6,89.998,89.934,66.43]
[1646045964020,112.6,90.048,89.935,177.03]
[1646045964220,112.6,90.048,89.951,177.03]
[1646045964419,1.75013478,90.047,89.952,3.08440116]
[1646045964819,58.62670516,90.046,89.955,177.03]
[1646045965022,1.80021308,90.045,89.955,177.03]
[1646045965222,1.80021308,90.045,89.956,2.74678921]
[1646045965422,1.69201543,90.045,89.97,16.01]
[1646045967947,1.69201543,90.045,89.97,32.3018]
[1646045969447,1.69201543,90.045,89.971,110.6]
[1646045970748,1.69201543,90.045,89.972,2.74678921]
[1646045970950,58.62670516,90.046,89.975,177.03]
[1646045971349,112.6,90.048,89.976,2.74678921]
[1646045971552,112.6,90.048,89.99,16.01]
[1646045971750,112.6,90.048,89.99,24.48]
[1646045972754,112.6,90.048,89.991,110.6]
[1646045974359,112.6,90.048,89.993,110.6]
[1646045974658,112.6,90.048,89.992,66.43]
[1646045974659,112.6,90.048,89.995,177.03]
[1646045974859,112.6,90.048,90.01,16.01]
[1646045975058,50.73597712,90.076,90.01,16.01]
[1646045975960,1.78410122,90.073,90.01,16.01]
[1646045980769,1.78410122,90.073,89.996,23.9947]
[1646045980970,0.95900131,90.072,89.996,23.9947]
[1646045981371,4.20220036,90.072,89.99,16.01]
[1646045981579,23.9546,90.071,89.99,16.01]
[1646045981774,1.3509383,90.07,89.99,16.01]
[1646045985874,1.3509383,90.07,89.991,110.6]
[1646045986293,1.3509383,90.07,89.99,16.01]
[1646045989094,1.3509383,90.07,89.991,110.6]
[1646045991095,1.3509383,90.07,89.992,24.8129]
[1646045991895,1.3509383,90.07,89.993,110.6]
[1646045992493,1.3509383,90.07,89.994,2.74678921]
[1646045993701,1.3509383,90.07,89.995,110.6]
[1646045993900,1.3509383,90.07,90.01,16.01]
[1646045995303,1.42686773,90.103,90.011,110.6]
[1646045995703,1.42686773,90.103,90.015,110.6]
[1646045995903,1.42686773,90.103,90.031,110.6]
[1646045996302,54.74814686,90.092,90.031,110.6]
[1646045996703,54.74814686,90.092,90.03,16.01]
[1646045997206,54.74814686,90.092,90.01,16.01]
[1646045997403,24.4054,90.082,90.01,16.01]
[1646045997706,1.45799128,90.081,90.01,16.01]
[1646045998004,24.4054,90.082,90.011,110.6]
[1646046001109,24.4054,90.082,90.015,177.03]
[1646046001311,24.4054,90.082,90.03,16.01]
[1646046002808,1.38471958,90.081,90.03,16.01]
[1646046008314,24.4054,90.082,90.03,16.01]
[1646046009515,1.40589636,90.108,90.031,113.34678921]
[1646046009914,1.40589636,90.108,90.032,2.74678921]
[1646046010316,1.40589636,90.108,90.033,110.6]
[1646046010516,57.80637779,90.107,90.033,110.6]
[1646046011916,1.40589636,90.108,90.032,25.85728921]
[1646046011917,1.40589636,90.108,90.038,66.43]
[1646046012116,112.6,90.12,90.051,110.6]
[1646046012337,112.6,90.12,90.046,66.43]
[1646046012338,112.6,90.12,90.061,110.6]
[1646046012519,112.6,90.154,90.062,66.43]
[1646046012720,24.8949,90.153,90.067,110.6]
[1646046012920,58.41710378,90.152,90.081,110.6]
[1646046013118,58.41710378,90.152,90.081,117.17]
[1646046013518,24.8949,90.153,90.081,117.17]
[1646046013519,112.6,90.154,90.083,110.6]
[1646046013720,112.6,90.154,90.087,110.6]
[1646046013923,112.6,90.154,90.101,110.6]
[1646046014520,112.6,90.154,90.102,2.74678921]
[1646046015728,112.6,90.154,90.103,110.6]
[1646046015925,112.6,90.154,90.105,110.6]
[1646046016124,112.6,90.154,90.12,16.01]
[1646046016727,112.6,90.154,90.121,110.6]
[1646046016926,112.6,90.154,90.121,113.34678921]
[1646046017127,112.6,90.154,90.122,2.74678921]
[1646046017325,112.6,90.154,90.122,69.17678921]
[1646046017528,112.6,90.154,90.127,110.6]
[1646046017825,112.6,90.196,90.14,16.01]
[1646046018926,1.85224649,90.195,90.14,16.01]
[1646046026355,112.6,90.196,90.14,16.01]
[1646046026755,112.6,90.196,90.14,15.98477812]
[1646046030261,112.6,90.196,90.141,110.6]
[1646046030459,112.6,90.196,90.141,113.34678921]
[1646046030662,112.6,90.196,90.142,2.74678921]
[1646046032262,112.6,90.196,90.144,110.6]
[1646046032662,112.6,90.196,90.145,2.74678921]
[1646046032861,112.6,90.196,90.145,69.17678921]
[1646046033061,24.9072,90.222,90.146,110.6]
[1646046033261,24.9072,90.222,90.16,16.01]
[1646046033661,24.9072,90.222,90.161,110.6]
[1646046033862,24.9072,90.222,90.161,113.34678921]
[1646046034060,24.9072,90.222,90.162,2.74678921]
[1646046036162,24.9072,90.222,90.16,16.01]
[1646046037264,1.72301394,90.221,90.16,16.01]
[1646046037466,1.72301394,90.221,90.146,23.237]
[1646046037965,1.72301394,90.221,90.15,16.01]
[1646046042272,1.72301394,90.221,90.151,28.27109953]
[1646046044076,1.72301394,90.221,90.152,2.74678921]
[1646046049107,1.72301394,90.221,90.153,28.27109953]
[1646046052105,1.72301394,90.221,90.152,2.74678921]
[1646046052505,1.72301394,90.221,90.153,28.27109953]
[1646046052705,24.9072,90.222,90.154,110.6]
[1646046052905,24.9072,90.222,90.154,113.34678921]
[1646046053106,24.9072,90.222,90.156,110.6]
[1646046053305,24.9072,90.222,90.17,16.01]
[1646046053906,24.9072,90.222,90.17,18.75678921]
[1646046054109,24.9072,90.222,90.17,16.01]
[1646046055106,24.9072,90.222,90.171,2.74678921]
[1646046055306,24.9072,90.222,90.17,16.01]
[1646046055907,24.9072,90.222,90.17,32.8067]
[1646046061113,54.26831418,90.221,90.17,32.8067]
[1646046061516,24.9072,90.222,90.17,32.8067]
[1646046063017,24.9072,90.222,90.171,110.6]
[1646046063216,24.9072,90.222,90.171,113.34678921]
[1646046063416,24.9072,90.222,90.172,2.74678921]
[1646046063617,24.9072,90.222,90.173,110.6]
[1646046064018,24.9072,90.222,90.174,2.74678921]
[1646046065519,24.9072,90.222,90.17,32.8067]
[1646046069320,24.9072,90.222,90.171,110.6]
[1646046070123,1.53195273,90.268,90.171,110.6]
[1646046070324,49.4645,90.267,90.173,110.6]
[1646046070522,1.40230298,90.266,90.173,110.6]
[1646046070725,1.40230298,90.266,90.174,2.74678921]
[1646046071333,1.40230298,90.266,90.175,110.6]
[1646046071723,1.40230298,90.266,90.177,110.6]
[1646046071922,1.40230298,90.266,90.19,16.01]
[1646046072122,1.40230298,90.266,90.191,23.2995]
[1646046072342,1.40230298,90.266,90.192,110.6]
[1646046072724,49.4645,90.267,90.192,113.34678921]
[1646046072925,49.4645,90.267,90.194,110.6]
[1646046073324,49.4645,90.267,90.195,2.74678921]
[1646046074023,49.4645,90.267,90.197,110.6]
[1646046074224,49.4645,90.267,90.21,16.01]
[1646046075724,49.4645,90.267,90.211,110.6]
[1646046076024,49.4645,90.267,90.211,2.74678921]
[1646046076725,49.4645,90.267,90.211,113.34678921]
[1646046076926,49.4645,90.267,90.211,2.74678921]
[1646046077124,49.4645,90.267,90.211,113.34678921]
[1646046077326,49.4645,90.267,90.211,2.74678921]
[1646046079627,112.6,90.277,90.211,113.34678921]
[1646046079848,23.6891,90.289,90.213,110.6]
[1646046080227,23.6891,90.289,90.214,2.74678921]
[1646046080830,23.6891,90.289,90.217,110.6]
[1646046081030,23.6891,90.289,90.214,26.66372553]
[1646046081031,4.76904782,90.314,90.23,16.01]
[1646046081229,400.32,90.54,90.23,16.01]
[1646046081230,188.9,90.376,90.232,2.94720242]
[1646046081430,78.97145924,90.391,90.231,183.03]
[1646046081431,164.54870275,90.37,90.25,200.16]
[1646046081633,164.54870275,90.37,90.26,200.16]
[1646046081831,164.54870275,90.37,90.262,69.27611]
[1646046082129,164.54870275,90.37,90.27,66.43]
[1646046082332,43.93199323,90.37,90.28,16.01]
[1646046082529,43.93199323,90.37,90.291,2.75159742]
[1646046082729,43.93199323,90.37,90.291,110.6]
[1646046082932,43.93199323,90.37,90.292,2.75783442]
[1646046083732,43.93199323,90.37,90.292,19.75853442]
[1646046084029,43.93199323,90.37,90.293,2.86819042]
[1646046086433,23.9729,90.369,90.293,2.86819042]
[1646046087034,23.9729,90.369,90.293,113.46819042]
[1646046087233,23.9729,90.369,90.295,110.6]
[1646046087435,23.9729,90.369,90.296,8.51965635]
[1646046087634,23.9729,90.369,90.311,2.50259278]
[1646046087935,23.9729,90.369,90.313,110.6]
[1646046088134,23.9729,90.369,90.316,2.99825564]
[1646046088334,23.9729,90.369,90.312,6.0]
[1646046088335,23.9729,90.369,90.32,16.01]
[1646046088533,23.9729,90.369,90.321,2.60391894]
[1646046088733,23.9729,90.369,90.322,6.0]
[1646046088935,23.9729,90.369,90.32,16.01]
[1646046089134,23.9729,90.369,90.321,2.54817962]
[1646046089534,23.9729,90.369,90.322,6.0]
[1646046090536,24.894,90.39,90.323,110.6]
[1646046090736,24.894,90.39,90.325,110.6]
[1646046090936,24.894,90.39,90.34,16.01]
[1646046091136,24.894,90.39,90.341,3.06550084]
[1646046091336,24.894,90.39,90.342,6.0]
[1646046095265,24.3606,90.401,90.343,110.6]
[1646046095560,157.4216,90.437,90.346,2.64136001]
[1646046095760,157.4216,90.437,90.36,16.01]
[1646046095962,46.8216,90.437,90.361,8.95425521]
[1646046096161,56.66999367,90.436,90.361,8.95425521]
[1646046097564,110.6,90.435,90.361,6.0]
[1646046097761,1.41182332,90.434,90.361,6.0]
[1646046097962,1.41182332,90.434,90.341,8.47023284]
[1646046098160,1.41182332,90.434,90.341,2.47023284]
[1646046098361,1.41182332,90.434,90.332,2.74678921]
[1646046098561,110.6,90.413,90.293,2.26563429]
[1646046098761,110.6,90.411,90.294,10.0]
[1646046098965,1.56214275,90.41,90.294,10.0]
[1646046099163,110.6,90.409,90.293,2.26563429]
[1646046099362,1.58271879,90.406,90.293,2.26563429]
[1646046099565,1.58271879,90.406,90.294,6.0]
[1646046099762,0.95900131,90.405,90.296,2.39153992]
[1646046099963,2.74678921,90.405,90.3,16.01]
[1646046100166,110.6,90.403,90.301,8.46001668]
[1646046100562,110.6,90.403,90.301,11.20680589]
[1646046100764,110.6,90.403,90.302,2.74678921]
[1646046100964,110.6,90.403,90.303,6.0]
[1646046101162,1.3656285,90.402,90.303,6.0]
[1646046101365,1.75091952,90.401,90.303,6.0]
[1646046101862,110.6,90.399,90.304,2.74678921]
[1646046102063,110.6,90.397,90.305,6.0]
[1646046102667,1.82091548,90.396,90.305,6.0]
[1646046103864,2.74678921,90.395,90.296,2.97060074]
[1646046104065,110.6,90.389,90.296,2.97060074]
[1646046104264,110.6,90.389,90.271,2.74678921]
[1646046104265,1.80137574,90.388,90.271,2.74678921]
[1646046104465,110.6,90.387,90.271,19.00128482]
[1646046104665,1.56701685,90.386,90.27,16.01]
[1646046104866,110.6,90.385,90.27,16.01]
[1646046105066,110.6,90.379,90.27,16.01]
[1646046105268,1.6094855,90.378,90.27,16.01]
[1646046105667,1.45568972,90.375,90.27,18.43133694]
[1646046105867,1.45568972,90.375,90.271,2.93569436]
[1646046106069,1.91800262,90.374,90.271,2.93569436]
[1646046106470,1.91800262,90.374,90.272,6.0]
[1646046106769,1.45568972,90.375,90.271,2.93569436]
[1646046106970,1.45568972,90.375,90.272,6.0]
[1646046107169,1.45568972,90.375,90.271,2.93569436]
[1646046107370,1.45568972,90.375,90.272,6.0]
[1646046107573,1.45568972,90.375,90.272,8.77532355]
[1646046107773,1.45568972,90.375,90.272,32.1953457]
[1646046107972,1.45568972,90.375,90.273,2.42351249]
[1646046108171,1.45568972,90.375,90.274,6.0]
[1646046109477,47.9917,90.377,90.275,66.43]
[1646046109676,47.9917,90.377,90.29,16.01]
[1646046109875,47.9917,90.377,90.291,8.29485752]
[1646046110778,158.5917,90.377,90.291,8.29485752]
[1646046111278,1.80726923,90.376,90.291,2.29485752]
[1646046111477,112.2818794,90.375,90.291,2.29485752]
[1646046111876,112.2818794,90.375,90.29,16.8973]
[1646046112082,1.51153924,90.374,90.291,2.87126396]
[1646046112783,110.6,90.376,90.291,2.87126396]
[1646046113079,110.6,90.376,90.292,6.0]
[1646046113678,47.9917,90.377,90.294,66.43]
[1646046113881,47.9917,90.377,90.297,110.6]
[1646046114079,1.5366233,90.431,90.311,110.6]
[1646046114279,47.2683,90.42,90.313,110.6]
[1646046114481,47.2683,90.42,90.314,3.10322761]
[1646046114680,110.6,90.418,90.314,3.10322761]
[1646046114885,1.6053484,90.417,90.315,6.0]
[1646046115480,1.6053484,90.417,90.285,14.71235109]
[1646046115481,110.6,90.416,90.291,2.96306896]
[1646046115684,110.6,90.416,90.281,2.95796446]
[1646046115685,1.35867099,90.415,90.281,2.95796446]
[1646046115881,110.6,90.414,90.271,2.39931425]
[1646046116181,110.6,90.397,90.263,2.71277078]
[1646046116383,1.38073223,90.394,90.264,6.0]
[1646046116582,163.60289863,90.379,90.264,6.0]
[1646046116781,1.7088088,90.376,90.264,6.0]
[1646046116984,1.7088088,90.376,90.265,110.6]
[1646046117184,110.6,90.377,90.272,3.0372916]
[1646046117381,110.6,90.377,90.274,3.02106171]
[1646046117787,110.6,90.377,90.275,6.0]
[1646046118382,110.6,90.377,90.276,2.74678921]
[1646046118582,110.6,90.377,90.281,2.46284316]
[1646046118783,46.475,90.378,90.281,2.46284316]
[1646046118984,46.475,90.378,90.283,110.6]
[1646046119183,46.475,90.378,90.286,2.33880274]
[1646046119383,46.475,90.378,90.287,6.0]
[1646046119584,46.475,90.378,90.288,110.6]
[1646046119784,46.475,90.378,90.301,110.6]
[1646046120084,112.6,90.418,90.307,110.6]
[1646046120287,112.6,90.418,90.32,16.01]
[1646046120483,47.8859,90.417,90.321,2.5183884]
[1646046120683,48.90547101,90.416,90.321,2.5183884]
[1646046120884,48.90547101,90.416,90.322,6.0]
[1646046121106,110.6,90.415,90.322,6.0]
[1646046123385,110.6,90.413,90.321,6.0]
[1646046123585,110.6,90.399,90.308,2.37717075]
[1646046123787,110.6,90.397,90.309,6.0]
[1646046123987,110.6,90.397,90.308,2.37717075]
[1646046124186,1.86725018,90.396,90.283,2.74678921]
[1646046124385,1.86725018,90.396,90.284,8.70539728]
[1646046124585,2.74678921,90.395,90.284,8.70539728]
[1646046124986,2.74678921,90.395,90.285,2.74678921]
[1646046125488,2.74678921,90.395,90.286,6.0]
[1646046125887,2.74678921,90.395,90.287,2.74678921]
[1646046126089,2.74678921,90.395,90.288,6.0]
[1646046126287,2.74678921,90.395,90.286,6.0]
[1646046126597,2.74678921,90.395,90.288,2.74678921]
[1646046126796,2.74678921,90.395,90.289,6.0]
[1646046127698,2.74678921,90.395,90.286,2.40071584]
[1646046127895,2.74678921,90.395,90.287,6.0]
[1646046128497,2.74678921,90.395,90.286,2.40071584]
[1646046128723,2.74678921,90.395,90.288,2.74678921]
[1646046128920,2.74678921,90.395,90.289,6.0]
[1646046129324,2.74678921,90.395,90.29,2.74678921]
[1646046129524,2.74678921,90.395,90.291,6.0]
[1646046129723,2.74678921,90.395,90.291,8.82446198]
[1646046130325,2.74678921,90.395,90.291,2.82446198]
[1646046130726,2.74678921,90.395,90.291,5.57125119]
[1646046133027,2.74678921,90.395,90.292,6.0]
[1646046133429,2.74678921,90.395,90.291,5.57125119]
[1646046134027,2.74678921,90.395,90.292,6.0]